[Event "Late-Titled-Tuesday-Blitz-February-13-2024"]
[Site "Chess.com"]
[Date "2024.02.13"]
[Round "5"]
[White "KaydenTroffChess"]
[Black "scandalgod"]
[Result "1-0"]
[WhiteElo "2833"]
[BlackElo "2519"]
[TimeControl "180+1"]
[EndTime "14:55:16 PST"]
[Termination "KaydenTroffChess won by resignation"]

1. d4 {[%clk 0:02:59.7]} 1... d5 {[%clk 0:02:52.3]} 2. Nf3 {[%clk 0:02:59.6]}
2... Nf6 {[%clk 0:02:52]} 3. Bf4 {[%clk 0:02:59.2]} 3... e6 {[%clk 0:02:51.7]}
4. e3 {[%clk 0:02:59.5]} 4... Bd6 {[%clk 0:02:52]} 5. Ne5 {[%clk 0:02:59.7]}
5... O-O {[%clk 0:02:49.6]} 6. Bd3 {[%clk 0:02:59.7]} 6... c5 {[%clk 0:02:49.8]}
7. c3 {[%clk 0:02:59.3]} 7... Qc7 {[%clk 0:02:50]} 8. Bg3 {[%clk 0:02:59.5]}
8... Nbd7 {[%clk 0:02:48.7]} 9. f4 {[%clk 0:02:59.6]} 9... b6 {[%clk 0:02:48.1]}
10. Nd2 {[%clk 0:02:57.9]} 10... Bb7 {[%clk 0:02:48.4]} 11. Qf3 {[%clk
0:02:55.3]} 11... a5 {[%clk 0:02:42.4]} 12. Bh4 {[%clk 0:02:49.6]} 12... Ba6
{[%clk 0:02:32.5]} 13. Bc2 {[%clk 0:02:48.8]} 13... b5 {[%clk 0:02:30.1]} 14. g4
{[%clk 0:02:39.4]} 14... b4 {[%clk 0:02:16]} 15. Bxf6 {[%clk 0:02:30.3]} 15...
gxf6 {[%clk 0:02:12.9]} 16. g5 {[%clk 0:02:07.3]} 16... f5 {[%clk 0:01:58.5]}
17. Qh5 {[%clk 0:01:17.7]} 17... Bxe5 {[%clk 0:01:50.5]} 18. dxe5 {[%clk
0:01:14.8]} 18... bxc3 {[%clk 0:01:42]} 19. bxc3 {[%clk 0:01:14.3]} 19... d4
{[%clk 0:01:42.2]} 20. Ne4 {[%clk 0:01:10.6]} 20... Qc6 {[%clk 0:01:24.5]} 21.
Nf6+ {[%clk 0:00:57]} 21... Nxf6 {[%clk 0:01:18.3]} 22. gxf6 {[%clk 0:00:57.2]}
22... Qxh1+ {[%clk 0:01:14.9]} 23. Kf2 {[%clk 0:00:56.9]} 23... dxe3+ {[%clk
0:01:04.5]} 24. Kg3 {[%clk 0:00:49.3]} 24... Kh8 {[%clk 0:00:43.1]} 25. Rxh1
{[%clk 0:00:46.1]} 25... Rg8+ {[%clk 0:00:42]} 26. Kf3 {[%clk 0:00:36.4]} 26...
Bb7+ {[%clk 0:00:36.3]} 27. Kxe3 {[%clk 0:00:36.5]} 27... Bxh1 {[%clk
0:00:36.2]} 28. Qxf7 {[%clk 0:00:36.5]} 28... Bd5 {[%clk 0:00:31.9]} 29. Bxf5
{[%clk 0:00:35.6]} 29... exf5 {[%clk 0:00:25.1]} 30. Qxd5 {[%clk 0:00:35.7]}
30... Rad8 {[%clk 0:00:21.8]} 31. Qe6 {[%clk 0:00:35]} 31... Rg2 {[%clk
0:00:19.3]} 32. f7 {[%clk 0:00:31]} 32... Rf8 {[%clk 0:00:12.9]} 33. Qf6+ {[%clk
0:00:30.6]} 33... Rg7 {[%clk 0:00:13]} 34. e6 {[%clk 0:00:31.3]} 1-0

[Event "Late-Titled-Tuesday-Blitz-February-13-2024"]
[Site "Chess.com"]
[Date "2024.02.13"]
[Round "5"]
[White "Conejoviejo67"]
[Black "sotochess"]
[Result "0-1"]
[WhiteElo "2432"]
[BlackElo "2591"]
[TimeControl "180+1"]
[EndTime "14:55:19 PST"]
[Termination "sotochess won by resignation"]

1. e4 {[%clk 0:03:00.9]} 1... d5 {[%clk 0:02:59.6]} 2. exd5 {[%clk 0:03:00.4]}
2... Qxd5 {[%clk 0:03:00.5]} 3. Nc3 {[%clk 0:03:00.6]} 3... Qa5 {[%clk
0:03:00.4]} 4. Bc4 {[%clk 0:03:00.6]} 4... Nf6 {[%clk 0:02:59.1]} 5. d4 {[%clk
0:02:59.9]} 5... c6 {[%clk 0:02:58.9]} 6. Nf3 {[%clk 0:02:57.6]} 6... Bg4 {[%clk
0:02:58.4]} 7. h3 {[%clk 0:02:57.7]} 7... Bh5 {[%clk 0:02:57.5]} 8. Bd2 {[%clk
0:02:55.3]} 8... Qb6 {[%clk 0:02:55.4]} 9. g4 {[%clk 0:02:39.4]} 9... Bg6 {[%clk
0:02:53]} 10. Bb3 {[%clk 0:02:39]} 10... e6 {[%clk 0:02:48.7]} 11. Be3 {[%clk
0:02:37.1]} 11... Qa5 {[%clk 0:02:47.2]} 12. Ne5 {[%clk 0:02:35.4]} 12... Nbd7
{[%clk 0:02:41.1]} 13. Nxg6 {[%clk 0:02:31.7]} 13... hxg6 {[%clk 0:02:40.3]} 14.
Qf3 {[%clk 0:02:31.4]} 14... Nd5 {[%clk 0:02:14.8]} 15. Bd2 {[%clk 0:02:27.6]}
15... Qb6 {[%clk 0:02:10.3]} 16. Qd3 {[%clk 0:02:21.1]} 16... Nb4 {[%clk
0:01:57]} 17. Qc4 {[%clk 0:02:04.4]} 17... Nf6 {[%clk 0:01:45.6]} 18. a3 {[%clk
0:02:00.5]} 18... Nbd5 {[%clk 0:01:43.9]} 19. Qd3 {[%clk 0:01:51.4]} 19... Nxg4
{[%clk 0:01:37.9]} 20. Nxd5 {[%clk 0:01:47.7]} 20... cxd5 {[%clk 0:01:30.9]} 21.
Ba4+ {[%clk 0:01:46.1]} 21... Kd8 {[%clk 0:01:28.2]} 22. b4 {[%clk 0:00:56.5]}
22... Nf6 {[%clk 0:01:23.3]} 23. Bg5 {[%clk 0:00:50.6]} 23... a5 {[%clk
0:01:14.9]} 24. c3 {[%clk 0:00:43.6]} 24... Be7 {[%clk 0:00:52]} 25. Ke2 {[%clk
0:00:35.3]} 25... Ne4 {[%clk 0:00:46.5]} 26. Bxe7+ {[%clk 0:00:32.9]} 26... Kxe7
{[%clk 0:00:45.8]} 27. Rhb1 {[%clk 0:00:32]} 27... Qc7 {[%clk 0:00:43]} 28. Rb3
{[%clk 0:00:29.8]} 28... axb4 {[%clk 0:00:37]} 29. axb4 {[%clk 0:00:27.7]} 29...
Qf4 {[%clk 0:00:32.2]} 30. Qe3 {[%clk 0:00:19.9]} 30... Qxe3+ {[%clk 0:00:29.4]}
31. fxe3 {[%clk 0:00:20.8]} 31... b5 {[%clk 0:00:27.7]} 32. Rba3 {[%clk
0:00:20.5]} 32... Rxa4 {[%clk 0:00:26.3]} 0-1

[Event "Late-Titled-Tuesday-Blitz-February-13-2024"]
[Site "Chess.com"]
[Date "2024.02.13"]
[Round "5"]
[White "tgpgoat"]
[Black "pinguino120"]
[Result "0-1"]
[WhiteElo "2524"]
[BlackElo "2349"]
[TimeControl "180+1"]
[EndTime "14:55:19 PST"]
[Termination "pinguino120 won by checkmate"]

1. Nf3 {[%clk 0:03:00.9]} 1... d5 {[%clk 0:02:57.7]} 2. g3 {[%clk 0:03:00.8]}
2... Nf6 {[%clk 0:02:57.6]} 3. Bg2 {[%clk 0:03:01.4]} 3... Bg4 {[%clk
0:02:56.5]} 4. O-O {[%clk 0:03:02.3]} 4... c6 {[%clk 0:02:56.6]} 5. Ne5 {[%clk
0:03:02.6]} 5... Bh5 {[%clk 0:02:55.6]} 6. d4 {[%clk 0:03:03.5]} 6... Nbd7
{[%clk 0:02:54.8]} 7. Bg5 {[%clk 0:03:03.2]} 7... Ne4 {[%clk 0:02:33.5]} 8. Bf4
{[%clk 0:02:56.2]} 8... e6 {[%clk 0:02:28.8]} 9. Nd2 {[%clk 0:02:55]} 9... Nxd2
{[%clk 0:02:28.3]} 10. Qxd2 {[%clk 0:02:54.9]} 10... Be7 {[%clk 0:02:26.2]} 11.
e4 {[%clk 0:02:53.9]} 11... dxe4 {[%clk 0:02:16.8]} 12. Bxe4 {[%clk 0:02:45.8]}
12... Nxe5 {[%clk 0:02:16.1]} 13. Bxe5 {[%clk 0:02:45.4]} 13... Bf6 {[%clk
0:02:08.2]} 14. Qf4 {[%clk 0:02:40.2]} 14... Bg5 {[%clk 0:01:50.2]} 15. Bc7
{[%clk 0:02:23.7]} 15... Bxf4 {[%clk 0:01:27.1]} 16. Bxd8 {[%clk 0:02:22.9]}
16... Rxd8 {[%clk 0:01:26.6]} 17. gxf4 {[%clk 0:02:20]} 17... Rxd4 {[%clk
0:01:26.5]} 18. Bd3 {[%clk 0:02:20.2]} 18... Rxf4 {[%clk 0:01:24.5]} 19. Rfe1
{[%clk 0:02:20.9]} 19... O-O {[%clk 0:01:23.5]} 20. Kg2 {[%clk 0:02:18.9]} 20...
Rd8 {[%clk 0:01:20.7]} 21. Rad1 {[%clk 0:02:16.5]} 21... Rfd4 {[%clk 0:01:18.9]}
22. f3 {[%clk 0:01:45.4]} 22... Bg6 {[%clk 0:01:07.6]} 23. Re3 {[%clk
0:01:44.8]} 23... c5 {[%clk 0:01:04.7]} 24. b3 {[%clk 0:01:43.2]} 24... b5
{[%clk 0:01:03.4]} 25. Rc1 {[%clk 0:01:38.5]} 25... Bxd3 {[%clk 0:00:36.9]} 26.
cxd3 {[%clk 0:01:39.4]} 26... Rxd3 {[%clk 0:00:36.2]} 27. Re5 {[%clk 0:01:30.6]}
27... g6 {[%clk 0:00:32.7]} 28. Rexc5 {[%clk 0:01:29.2]} 28... Rd2+ {[%clk
0:00:32.1]} 29. Kg3 {[%clk 0:01:29.3]} 29... Rxa2 {[%clk 0:00:32.2]} 30. Rxb5
{[%clk 0:01:29.7]} 30... Rdd2 {[%clk 0:00:31.6]} 31. Rc7 {[%clk 0:01:27]} 31...
Rdc2 {[%clk 0:00:29]} 32. Rd7 {[%clk 0:01:23.9]} 32... Rxh2 {[%clk 0:00:14.2]}
33. Rbb7 {[%clk 0:01:22]} 33... g5 {[%clk 0:00:14.4]} 34. f4 {[%clk 0:01:09.6]}
34... Rag2+ {[%clk 0:00:14.4]} 35. Kf3 {[%clk 0:01:09.5]} 35... Rf2+ {[%clk
0:00:14.3]} 36. Ke3 {[%clk 0:01:06.8]} 36... Rxf4 {[%clk 0:00:14.3]} 37. Rxa7
{[%clk 0:01:05.6]} 37... Rh3+ {[%clk 0:00:14.6]} 38. Ke2 {[%clk 0:01:05.2]}
38... Rxb3 {[%clk 0:00:15.2]} 39. Ra5 {[%clk 0:01:04.5]} 39... h6 {[%clk
0:00:14.5]} 40. Ra8+ {[%clk 0:00:56.7]} 40... Kg7 {[%clk 0:00:14.4]} 41. Rdd8
{[%clk 0:00:57.6]} 41... Rc4 {[%clk 0:00:12.6]} 42. Kd2 {[%clk 0:00:56.7]} 42...
Rh3 {[%clk 0:00:11.6]} 43. Rg8+ {[%clk 0:00:56.6]} 43... Kf6 {[%clk 0:00:11.4]}
44. Ra7 {[%clk 0:00:55.8]} 44... Rg4 {[%clk 0:00:10.9]} 45. Rf8 {[%clk
0:00:55.7]} 45... Rg2+ {[%clk 0:00:11]} 46. Ke1 {[%clk 0:00:55.1]} 46... Rh1#
{[%clk 0:00:11.1]} 0-1

[Event "Late-Titled-Tuesday-Blitz-February-13-2024"]
[Site "Chess.com"]
[Date "2024.02.13"]
[Round "5"]
[White "Doublekk14"]
[Black "cthake"]
[Result "1-0"]
[WhiteElo "2329"]
[BlackElo "1804"]
[TimeControl "180+1"]
[EndTime "14:55:19 PST"]
[Termination "Doublekk14 won by resignation"]

1. c4 {[%clk 0:03:00.9]} 1... e5 {[%clk 0:02:58.6]} 2. Nc3 {[%clk 0:02:59.3]}
2... Nc6 {[%clk 0:02:59.2]} 3. Nf3 {[%clk 0:02:57.9]} 3... d6 {[%clk 0:02:59.2]}
4. e3 {[%clk 0:02:57.7]} 4... g6 {[%clk 0:02:59.4]} 5. d4 {[%clk 0:02:57.2]}
5... exd4 {[%clk 0:02:54.1]} 6. exd4 {[%clk 0:02:55.6]} 6... Bg7 {[%clk
0:02:53.4]} 7. h3 {[%clk 0:02:55.5]} 7... Bf5 {[%clk 0:02:48.8]} 8. Be2 {[%clk
0:02:53]} 8... Nge7 {[%clk 0:02:48.4]} 9. O-O {[%clk 0:02:52.3]} 9... O-O {[%clk
0:02:48.2]} 10. g4 {[%clk 0:02:47.9]} 10... Bd7 {[%clk 0:02:46.4]} 11. Bg5
{[%clk 0:02:45.4]} 11... h6 {[%clk 0:02:41.9]} 12. Bh4 {[%clk 0:02:44]} 12... g5
{[%clk 0:02:39.3]} 13. Bg3 {[%clk 0:02:37]} 13... Ng6 {[%clk 0:02:36.9]} 14. Nd5
{[%clk 0:02:34.6]} 14... Nce7 {[%clk 0:02:32.7]} 15. Bd3 {[%clk 0:02:21.7]}
15... Nxd5 {[%clk 0:02:24.8]} 16. cxd5 {[%clk 0:02:20.1]} 16... Nf4 {[%clk
0:02:14.2]} 17. Bxf4 {[%clk 0:02:14.4]} 17... gxf4 {[%clk 0:02:14.6]} 18. Qb3
{[%clk 0:01:57.1]} 18... a5 {[%clk 0:01:58.6]} 19. Rac1 {[%clk 0:01:53.7]} 19...
Re8 {[%clk 0:01:44.2]} 20. Qc2 {[%clk 0:01:43]} 20... c6 {[%clk 0:01:39.4]} 21.
Bh7+ {[%clk 0:01:30]} 21... Kh8 {[%clk 0:01:38.8]} 22. Bf5 {[%clk 0:01:30.9]}
22... Rc8 {[%clk 0:01:30.3]} 23. dxc6 {[%clk 0:01:26.3]} 23... Rxc6 {[%clk
0:01:26.5]} 24. Qd3 {[%clk 0:01:26]} 24... Qc8 {[%clk 0:01:12.5]} 25. Rxc6
{[%clk 0:01:18.6]} 25... bxc6 {[%clk 0:01:12.4]} 26. Bxd7 {[%clk 0:01:10.5]}
26... Qxd7 {[%clk 0:01:12.4]} 27. Qd2 {[%clk 0:01:04.3]} 27... Re4 {[%clk
0:00:58.9]} 28. Re1 {[%clk 0:00:47.2]} 28... d5 {[%clk 0:00:58.4]} 29. Qxa5
{[%clk 0:00:38.8]} 29... Qe8 {[%clk 0:00:46.9]} 30. Qd2 {[%clk 0:00:18.8]} 30...
Rxe1+ {[%clk 0:00:44.3]} 31. Nxe1 {[%clk 0:00:18.7]} 31... Qe4 {[%clk
0:00:43.8]} 32. f3 {[%clk 0:00:15.7]} 32... Qxd4+ {[%clk 0:00:41.6]} 33. Qxd4
{[%clk 0:00:15.7]} 33... Bxd4+ {[%clk 0:00:41.7]} 34. Kf1 {[%clk 0:00:15.5]}
34... Bxb2 {[%clk 0:00:41.7]} 35. Nd3 {[%clk 0:00:15.6]} 35... Kg7 {[%clk
0:00:35.1]} 36. Nxb2 {[%clk 0:00:15.3]} 1-0

[Event "Late-Titled-Tuesday-Blitz-February-13-2024"]
[Site "Chess.com"]
[Date "2024.02.13"]
[Round "5"]
[White "ozates"]
[Black "Quattroporte300"]
[Result "1-0"]
[WhiteElo "2586"]
[BlackElo "2413"]
[TimeControl "180+1"]
[EndTime "14:55:20 PST"]
[Termination "ozates won by checkmate"]

1. e4 {[%clk 0:03:00.9]} 1... c5 {[%clk 0:02:59.4]} 2. Nf3 {[%clk 0:03:00.7]}
2... d6 {[%clk 0:02:58.2]} 3. Bb5+ {[%clk 0:02:58.9]} 3... Bd7 {[%clk
0:02:57.9]} 4. Bxd7+ {[%clk 0:02:58.8]} 4... Qxd7 {[%clk 0:02:58.8]} 5. O-O
{[%clk 0:02:59.4]} 5... Nc6 {[%clk 0:02:59.4]} 6. Qe2 {[%clk 0:03:00.1]} 6...
Nf6 {[%clk 0:02:59.5]} 7. Rd1 {[%clk 0:03:00.7]} 7... g6 {[%clk 0:02:49.5]} 8.
c3 {[%clk 0:03:00.4]} 8... Bg7 {[%clk 0:02:46.1]} 9. d4 {[%clk 0:02:57.2]} 9...
cxd4 {[%clk 0:02:45.6]} 10. cxd4 {[%clk 0:02:58.1]} 10... O-O {[%clk 0:02:44.3]}
11. Nc3 {[%clk 0:02:57.8]} 11... e6 {[%clk 0:02:40.9]} 12. e5 {[%clk 0:02:57]}
12... Nd5 {[%clk 0:02:40]} 13. Bg5 {[%clk 0:02:42.6]} 13... h6 {[%clk
0:02:36.3]} 14. Bh4 {[%clk 0:02:36.3]} 14... Rac8 {[%clk 0:02:24.4]} 15. Ne4
{[%clk 0:02:34.8]} 15... dxe5 {[%clk 0:02:17.7]} 16. dxe5 {[%clk 0:02:35.7]}
16... Nxe5 {[%clk 0:02:01.6]} 17. Nxe5 {[%clk 0:01:50.1]} 17... Bxe5 {[%clk
0:02:02.5]} 18. Bf6 {[%clk 0:01:49.8]} 18... Qc7 {[%clk 0:01:25.9]} 19. Rac1
{[%clk 0:01:27.7]} 19... Qxc1 {[%clk 0:01:03.5]} 20. Bxe5 {[%clk 0:01:27.5]}
20... Qc2 {[%clk 0:01:03.3]} 21. Qf3 {[%clk 0:01:16.2]} 21... f5 {[%clk
0:00:55]} 22. Nd6 {[%clk 0:01:07.1]} 22... Rc6 {[%clk 0:00:42.7]} 23. h4 {[%clk
0:01:04.5]} 23... h5 {[%clk 0:00:29.7]} 24. Rxd5 {[%clk 0:00:33.8]} 24... exd5
{[%clk 0:00:29.3]} 25. Qxd5+ {[%clk 0:00:34.7]} 25... Kh7 {[%clk 0:00:29.6]} 26.
Nf7 {[%clk 0:00:35.3]} 26... Qc1+ {[%clk 0:00:08]} 27. Kh2 {[%clk 0:00:35.4]}
27... Rc5 {[%clk 0:00:05]} 28. Ng5+ {[%clk 0:00:29.6]} 28... Qxg5 {[%clk
0:00:03.9]} 29. Qd7+ {[%clk 0:00:27]} 29... Kg8 {[%clk 0:00:02.9]} 30. Qg7#
{[%clk 0:00:26.4]} 1-0

[Event "Late-Titled-Tuesday-Blitz-February-13-2024"]
[Site "Chess.com"]
[Date "2024.02.13"]
[Round "5"]
[White "Bigfish1995"]
[Black "AradNazari"]
[Result "1-0"]
[WhiteElo "3169"]
[BlackElo "2772"]
[TimeControl "180+1"]
[EndTime "14:55:22 PST"]
[Termination "Bigfish1995 won on time"]

1. e4 {[%clk 0:02:06.4]} 1... c5 {[%clk 0:02:57.4]} 2. Nf3 {[%clk 0:02:05.2]}
2... d6 {[%clk 0:02:58]} 3. Bb5+ {[%clk 0:02:03.9]} 3... Bd7 {[%clk 0:02:56.4]}
4. c4 {[%clk 0:02:01]} 4... Nf6 {[%clk 0:02:54.2]} 5. Nc3 {[%clk 0:02:00.1]}
5... g6 {[%clk 0:02:49.4]} 6. O-O {[%clk 0:01:57.8]} 6... Bg7 {[%clk 0:02:49]}
7. h3 {[%clk 0:01:57]} 7... O-O {[%clk 0:02:48.8]} 8. d3 {[%clk 0:01:57.6]} 8...
a6 {[%clk 0:02:48.9]} 9. Bxd7 {[%clk 0:01:54.9]} 9... Qxd7 {[%clk 0:02:49.4]}
10. Be3 {[%clk 0:01:39]} 10... e5 {[%clk 0:02:48.6]} 11. Nh2 {[%clk 0:01:27.4]}
11... b5 {[%clk 0:02:22.6]} 12. Ng4 {[%clk 0:01:25.2]} 12... Nxg4 {[%clk
0:01:58.1]} 13. hxg4 {[%clk 0:01:26.1]} 13... bxc4 {[%clk 0:01:33.7]} 14. dxc4
{[%clk 0:01:25.5]} 14... Rd8 {[%clk 0:01:22.4]} 15. Nd5 {[%clk 0:01:22.1]} 15...
Qb7 {[%clk 0:01:16.8]} 16. Bg5 {[%clk 0:01:11.3]} 16... Re8 {[%clk 0:01:09.7]}
17. Bf6 {[%clk 0:01:06.9]} 17... Re6 {[%clk 0:00:46.7]} 18. g5 {[%clk
0:01:03.7]} 18... Nd7 {[%clk 0:00:44.3]} 19. f4 {[%clk 0:00:44.4]} 19... Bxf6
{[%clk 0:00:27.1]} 20. f5 {[%clk 0:00:37.6]} 20... Bxg5 {[%clk 0:00:25.7]} 21.
fxe6 {[%clk 0:00:34.9]} 21... fxe6 {[%clk 0:00:25.4]} 22. Qg4 {[%clk 0:00:33.3]}
22... exd5 {[%clk 0:00:20.8]} 23. Qxg5 {[%clk 0:00:27.3]} 23... dxe4 {[%clk
0:00:07.2]} 24. Qe7 {[%clk 0:00:25.2]} 24... Qc6 {[%clk 0:00:02.2]} 25. Rf7
{[%clk 0:00:24.7]} 25... Nf8 {[%clk 0:00:02.8]} 26. Rg7+ {[%clk 0:00:24.6]}
26... Kh8 {[%clk 0:00:03.5]} 27. Qf7 {[%clk 0:00:25.2]} 1-0

[Event "Late-Titled-Tuesday-Blitz-February-13-2024"]
[Site "Chess.com"]
[Date "2024.02.13"]
[Round "5"]
[White "Semetey"]
[Black "cukricek"]
[Result "1-0"]
[WhiteElo "2622"]
[BlackElo "2457"]
[TimeControl "180+1"]
[EndTime "14:55:23 PST"]
[Termination "Semetey won by checkmate"]

1. e3 {[%clk 0:02:50.6]} 1... g6 {[%clk 0:02:59.4]} 2. e4 {[%clk 0:02:50.1]}
2... c5 {[%clk 0:02:57.2]} 3. Nf3 {[%clk 0:02:50.2]} 3... Bg7 {[%clk 0:02:57.1]}
4. Nc3 {[%clk 0:02:49.9]} 4... Nc6 {[%clk 0:02:55.6]} 5. Bb5 {[%clk 0:02:49.7]}
5... Nd4 {[%clk 0:02:55.2]} 6. Bc4 {[%clk 0:02:48.9]} 6... e6 {[%clk 0:02:54.9]}
7. O-O {[%clk 0:02:48.1]} 7... Ne7 {[%clk 0:02:55.1]} 8. Nxd4 {[%clk 0:02:47.7]}
8... cxd4 {[%clk 0:02:55]} 9. Ne2 {[%clk 0:02:48]} 9... d5 {[%clk 0:02:49.2]}
10. exd5 {[%clk 0:02:45.7]} 10... Nxd5 {[%clk 0:02:49.4]} 11. d3 {[%clk
0:02:44.7]} 11... O-O {[%clk 0:02:49.1]} 12. Bd2 {[%clk 0:02:43.8]} 12... a6
{[%clk 0:02:46]} 13. a3 {[%clk 0:02:43.2]} 13... b5 {[%clk 0:02:46.3]} 14. Ba2
{[%clk 0:02:43.3]} 14... Bb7 {[%clk 0:02:46.1]} 15. Rc1 {[%clk 0:02:38.9]} 15...
Rc8 {[%clk 0:02:45.9]} 16. Bb3 {[%clk 0:02:30.7]} 16... Qd6 {[%clk 0:02:36.6]}
17. a4 {[%clk 0:02:29.9]} 17... Qc6 {[%clk 0:02:30.1]} 18. axb5 {[%clk
0:02:29.3]} 18... axb5 {[%clk 0:02:21.1]} 19. f3 {[%clk 0:02:14.7]} 19... Ra8
{[%clk 0:02:10.6]} 20. Qe1 {[%clk 0:02:11.6]} 20... e5 {[%clk 0:01:59.5]} 21.
Qf2 {[%clk 0:02:09.6]} 21... Kh8 {[%clk 0:01:57.4]} 22. Rfe1 {[%clk 0:02:04.5]}
22... f5 {[%clk 0:01:56.7]} 23. c3 {[%clk 0:01:51.9]} 23... Qb6 {[%clk
0:01:40.2]} 24. cxd4 {[%clk 0:01:39.2]} 24... exd4 {[%clk 0:01:41.1]} 25. Nf4
{[%clk 0:01:39]} 25... Ne3 {[%clk 0:01:18.8]} 26. Ne6 {[%clk 0:01:29.3]} 26...
Rfe8 {[%clk 0:01:18]} 27. Nxg7 {[%clk 0:01:14.9]} 27... Kxg7 {[%clk 0:01:17.4]}
28. Qh4 {[%clk 0:01:03.4]} 28... Rac8 {[%clk 0:01:00.6]} 29. Rxc8 {[%clk
0:00:54.3]} 29... Bxc8 {[%clk 0:01:01.5]} 30. Qf4 {[%clk 0:00:48.5]} 30... Qc5
{[%clk 0:00:20.6]} 31. Rc1 {[%clk 0:00:42.8]} 31... Qb6 {[%clk 0:00:03.4]} 32.
Rc7+ {[%clk 0:00:42]} 32... Kf6 {[%clk 0:00:02.1]} 33. Rf7# {[%clk 0:00:32.5]}
1-0

[Event "Late-Titled-Tuesday-Blitz-February-13-2024"]
[Site "Chess.com"]
[Date "2024.02.13"]
[Round "5"]
[White "Viktor_Poddubnyi"]
[Black "Jaka_Brilej"]
[Result "0-1"]
[WhiteElo "2273"]
[BlackElo "2536"]
[TimeControl "180+1"]
[EndTime "14:55:27 PST"]
[Termination "Jaka_Brilej won on time"]

1. e4 {[%clk 0:03:00]} 1... e5 {[%clk 0:02:59.9]} 2. f4 {[%clk 0:02:59.5]} 2...
exf4 {[%clk 0:02:57.7]} 3. Nf3 {[%clk 0:02:59.6]} 3... d6 {[%clk 0:02:57.9]} 4.
d4 {[%clk 0:02:56.7]} 4... g5 {[%clk 0:02:56.3]} 5. g3 {[%clk 0:02:52]} 5... g4
{[%clk 0:02:50.2]} 6. Nh4 {[%clk 0:02:52.3]} 6... f3 {[%clk 0:02:49.7]} 7. Nc3
{[%clk 0:02:52.4]} 7... Bg7 {[%clk 0:02:38.9]} 8. Be3 {[%clk 0:02:51.8]} 8...
Nc6 {[%clk 0:02:36.3]} 9. Qd2 {[%clk 0:02:49.4]} 9... Nge7 {[%clk 0:02:36.1]}
10. O-O-O {[%clk 0:02:47.8]} 10... Ng6 {[%clk 0:02:25.6]} 11. Nf5 {[%clk
0:02:39.7]} 11... Bxf5 {[%clk 0:02:25.6]} 12. exf5 {[%clk 0:02:40.6]} 12... Nge7
{[%clk 0:02:26.2]} 13. h3 {[%clk 0:02:02.1]} 13... h5 {[%clk 0:02:22.3]} 14. f6
{[%clk 0:01:10.6]} 14... Bxf6 {[%clk 0:02:19.5]} 15. Ne4 {[%clk 0:01:10.1]}
15... Bg7 {[%clk 0:02:17.5]} 16. Bg5 {[%clk 0:01:05.4]} 16... Qd7 {[%clk
0:01:49.1]} 17. Nf6+ {[%clk 0:01:03.7]} 17... Bxf6 {[%clk 0:01:46.3]} 18. Bxf6
{[%clk 0:01:04.6]} 18... Rg8 {[%clk 0:01:40]} 19. hxg4 {[%clk 0:01:01.5]} 19...
hxg4 {[%clk 0:01:40.9]} 20. Rh7 {[%clk 0:00:18.5]} 20... O-O-O {[%clk
0:01:37.6]} 21. Rxf7 {[%clk 0:00:17.1]} 21... Rdf8 {[%clk 0:01:37.4]} 22. Rxf8+
{[%clk 0:00:16]} 22... Rxf8 {[%clk 0:01:38.3]} 23. Bg5 {[%clk 0:00:15.3]} 23...
Nf5 {[%clk 0:01:30.7]} 24. c3 {[%clk 0:00:14.8]} 24... Nxg3 {[%clk 0:01:27.2]}
25. Bc4 {[%clk 0:00:14.4]} 25... d5 {[%clk 0:01:21.3]} 26. Bd3 {[%clk
0:00:14.1]} 26... Ne4 {[%clk 0:01:20.9]} 27. Qe3 {[%clk 0:00:10.5]} 27... Re8
{[%clk 0:01:15.4]} 28. Qf4 {[%clk 0:00:06.9]} 28... Kb8 {[%clk 0:01:09.7]} 29.
Rg1 {[%clk 0:00:03.9]} 29... a6 {[%clk 0:00:41]} 30. Qxg4 {[%clk 0:00:02.5]}
30... Qxg4 {[%clk 0:00:37.7]} 31. Rxg4 {[%clk 0:00:03.4]} 31... Nf2 {[%clk
0:00:38.4]} 32. Bg6 {[%clk 0:00:01.2]} 32... Re1+ {[%clk 0:00:35.6]} 0-1

[Event "Late-Titled-Tuesday-Blitz-February-13-2024"]
[Site "Chess.com"]
[Date "2024.02.13"]
[Round "5"]
[White "Rud_Makarian"]
[Black "Korchmar_Vasiliy"]
[Result "0-1"]
[WhiteElo "3028"]
[BlackElo "2761"]
[TimeControl "180+1"]
[EndTime "14:55:30 PST"]
[Termination "Korchmar_Vasiliy won by resignation"]

1. c4 {[%clk 0:03:00.9]} 1... c6 {[%clk 0:02:59.7]} 2. Nf3 {[%clk 0:03:00.6]}
2... d5 {[%clk 0:03:00.2]} 3. d4 {[%clk 0:03:01.2]} 3... Nf6 {[%clk 0:03:00.4]}
4. Nc3 {[%clk 0:03:01.7]} 4... a6 {[%clk 0:03:00.5]} 5. g3 {[%clk 0:03:01.3]}
5... dxc4 {[%clk 0:02:54.3]} 6. Bg2 {[%clk 0:02:59.4]} 6... g6 {[%clk
0:02:54.7]} 7. Ne5 {[%clk 0:02:59.1]} 7... Be6 {[%clk 0:02:50.4]} 8. O-O {[%clk
0:02:26]} 8... Bg7 {[%clk 0:02:49]} 9. e3 {[%clk 0:02:04.5]} 9... Nbd7 {[%clk
0:02:45.7]} 10. Qe2 {[%clk 0:01:57]} 10... Nxe5 {[%clk 0:02:44.2]} 11. dxe5
{[%clk 0:01:57.8]} 11... Nd7 {[%clk 0:02:37]} 12. f4 {[%clk 0:01:56.9]} 12...
Nc5 {[%clk 0:02:37.5]} 13. Rd1 {[%clk 0:01:57.2]} 13... Qc8 {[%clk 0:02:33.9]}
14. e4 {[%clk 0:01:44.1]} 14... Bg4 {[%clk 0:02:22.5]} 15. Qxc4 {[%clk
0:01:41.2]} 15... Bxd1 {[%clk 0:02:09.1]} 16. Qxc5 {[%clk 0:01:39]} 16... Bg4
{[%clk 0:02:09.6]} 17. Be3 {[%clk 0:01:31.3]} 17... Qe6 {[%clk 0:01:43.7]} 18.
Na4 {[%clk 0:01:11.4]} 18... O-O {[%clk 0:01:39.6]} 19. Nb6 {[%clk 0:01:11.8]}
19... Rad8 {[%clk 0:01:39.5]} 20. Bf1 {[%clk 0:01:12.3]} 20... Bf3 {[%clk
0:01:33.4]} 21. Qb4 {[%clk 0:01:05]} 21... h5 {[%clk 0:01:02.9]} 22. Kf2 {[%clk
0:00:46.3]} 22... Bd1 {[%clk 0:00:52.4]} 23. h3 {[%clk 0:00:39.3]} 23... Kh7
{[%clk 0:00:41.7]} 24. Nc4 {[%clk 0:00:28.5]} 24... Bc2 {[%clk 0:00:32.4]} 25.
Nd2 {[%clk 0:00:25.2]} 25... Bd3 {[%clk 0:00:27.6]} 26. Be2 {[%clk 0:00:19.6]}
26... Bxe2 {[%clk 0:00:25.1]} 27. Kxe2 {[%clk 0:00:20.2]} 27... Qxh3 {[%clk
0:00:25.8]} 28. Bf2 {[%clk 0:00:15.4]} 28... Rd7 {[%clk 0:00:19.9]} 29. Nf3
{[%clk 0:00:15.3]} 29... Qg4 {[%clk 0:00:17.1]} 30. Rh1 {[%clk 0:00:09.3]} 30...
Rfd8 {[%clk 0:00:17.4]} 31. Rh4 {[%clk 0:00:09]} 31... Rd2+ {[%clk 0:00:16.7]}
0-1